[Event "Early-Titled-Tuesday-Blitz-November-28-2023"]
[Site "Chess.com"]
[Date "2023.11.28"]
[Round "3"]
[White "Arimin1329"]
[Black "MasterKroket"]
[Result "1/2-1/2"]
[WhiteElo "2373"]
[BlackElo "2498"]
[TimeControl "180+1"]
[EndTime "8:30:31 PST"]
[Termination "Game drawn by repetition"]

1. Nf3 {[%clk 0:03:00.9]} 1... Nf6 {[%clk 0:02:59.8]} 2. g3 {[%clk 0:03:00.9]}
2... d5 {[%clk 0:02:58.5]} 3. Bg2 {[%clk 0:03:01.3]} 3... c6 {[%clk 0:02:59.2]}
4. d4 {[%clk 0:03:01.3]} 4... Bf5 {[%clk 0:02:58.8]} 5. c4 {[%clk 0:03:00.3]}
5... h6 {[%clk 0:02:59.1]} 6. Nc3 {[%clk 0:02:58.4]} 6... e6 {[%clk 0:02:59.5]}
7. O-O {[%clk 0:02:52]} 7... Be7 {[%clk 0:02:59]} 8. b3 {[%clk 0:02:51.6]} 8...
O-O {[%clk 0:02:58.8]} 9. Bb2 {[%clk 0:02:49.3]} 9... Nbd7 {[%clk 0:02:57]} 10.
Nd2 {[%clk 0:02:49.7]} 10... Bh7 {[%clk 0:02:53.9]} 11. e4 {[%clk 0:02:49.8]}
11... dxe4 {[%clk 0:02:54]} 12. Ndxe4 {[%clk 0:02:50.3]} 12... Nxe4 {[%clk
0:02:52.9]} 13. Nxe4 {[%clk 0:02:51.2]} 13... Nf6 {[%clk 0:02:51]} 14. Re1
{[%clk 0:02:50.9]} 14... Qc7 {[%clk 0:02:49.6]} 15. Qd2 {[%clk 0:02:42.4]} 15...
Rfd8 {[%clk 0:02:47.8]} 16. Rad1 {[%clk 0:02:13.8]} 16... c5 {[%clk 0:02:43.1]}
17. d5 {[%clk 0:02:10.5]} 17... exd5 {[%clk 0:02:42.8]} 18. Nxf6+ {[%clk
0:02:09.9]} 18... Bxf6 {[%clk 0:02:40.1]} 19. Bxf6 {[%clk 0:02:10.1]} 19... gxf6
{[%clk 0:02:40.3]} 20. Bxd5 {[%clk 0:02:04.9]} 20... Kg7 {[%clk 0:02:37.5]} 21.
Qe2 {[%clk 0:01:50.4]} 21... Re8 {[%clk 0:02:24.2]} 22. Qf3 {[%clk 0:01:48.1]}
22... Rxe1+ {[%clk 0:02:11.4]} 23. Rxe1 {[%clk 0:01:49]} 23... Rb8 {[%clk
0:02:11.1]} 24. h4 {[%clk 0:01:47.6]} 24... b6 {[%clk 0:02:10.5]} 25. Qg4+
{[%clk 0:01:47.1]} 25... Kh8 {[%clk 0:02:09.6]} 26. Qh5 {[%clk 0:01:26.9]} 26...
Kg7 {[%clk 0:02:09.6]} 27. Re3 {[%clk 0:01:20.6]} 27... Qd7 {[%clk 0:02:04.3]}
28. Qe2 {[%clk 0:01:17.7]} 28... Rf8 {[%clk 0:01:50.8]} 29. Re7 {[%clk 0:01:16]}
29... Qf5 {[%clk 0:01:47.7]} 30. Rxa7 {[%clk 0:01:13.5]} 30... h5 {[%clk
0:01:43.3]} 31. Rb7 {[%clk 0:01:01.1]} 31... Bg6 {[%clk 0:01:39.4]} 32. Rxb6
{[%clk 0:00:51.3]} 32... Qc8 {[%clk 0:01:40.1]} 33. Rb7 {[%clk 0:00:48.7]} 33...
Re8 {[%clk 0:01:40.1]} 34. Re7 {[%clk 0:00:49.2]} 34... Rxe7 {[%clk 0:01:38.6]}
35. Qxe7 {[%clk 0:00:50.1]} 35... Qf5 {[%clk 0:01:23.5]} 36. Qxc5 {[%clk
0:00:47]} 36... Qb1+ {[%clk 0:01:24.1]} 37. Kh2 {[%clk 0:00:46.2]} 37... Qxa2
{[%clk 0:01:23.7]} 38. Qe3 {[%clk 0:00:46.6]} 38... Qb2 {[%clk 0:01:21.5]} 39.
c5 {[%clk 0:00:44.5]} 39... Qc2 {[%clk 0:01:14]} 40. Bc4 {[%clk 0:00:39.5]}
40... Be4 {[%clk 0:01:08.8]} 41. Bf1 {[%clk 0:00:35.9]} 41... Bd5 {[%clk
0:01:03.1]} 42. Bg2 {[%clk 0:00:32.3]} 42... Bxb3 {[%clk 0:00:59.5]} 43. Bb7
{[%clk 0:00:19.8]} 43... Be6 {[%clk 0:00:54.4]} 44. Be4 {[%clk 0:00:17.3]} 44...
Qd1 {[%clk 0:00:45.2]} 45. Bf3 {[%clk 0:00:17.1]} 45... Qc2 {[%clk 0:00:42.2]}
46. Bxh5 {[%clk 0:00:15]} 46... Bd5 {[%clk 0:00:36.1]} 47. Bf3 {[%clk 0:00:14]}
47... Bxf3 {[%clk 0:00:36]} 48. Qxf3 {[%clk 0:00:14.6]} 48... Qxc5 {[%clk
0:00:36.4]} 49. Qg4+ {[%clk 0:00:14.9]} 49... Kh7 {[%clk 0:00:32.4]} 50. Qf4
{[%clk 0:00:15.4]} 50... Kg7 {[%clk 0:00:30.8]} 51. g4 {[%clk 0:00:14.9]} 51...
Qd5 {[%clk 0:00:27.6]} 52. Qg3 {[%clk 0:00:07.9]} 52... Qe4 {[%clk 0:00:26.6]}
53. Qg2 {[%clk 0:00:04.9]} 53... Qf4+ {[%clk 0:00:26]} 54. Kh3 {[%clk
0:00:04.4]} 54... Kh7 {[%clk 0:00:24.3]} 55. g5 {[%clk 0:00:04.6]} 55... f5
{[%clk 0:00:23.7]} 56. Qg3 {[%clk 0:00:04.5]} 56... Qe4 {[%clk 0:00:23.2]} 57.
h5 {[%clk 0:00:04.7]} 57... Kg7 {[%clk 0:00:22.6]} 58. Kh2 {[%clk 0:00:03.4]}
58... Kh7 {[%clk 0:00:22.7]} 59. g6+ {[%clk 0:00:03.2]} 59... fxg6 {[%clk
0:00:20.4]} 60. Qxg6+ {[%clk 0:00:03.8]} 60... Kh8 {[%clk 0:00:20.9]} 61. h6
{[%clk 0:00:04.3]} 61... Qf4+ {[%clk 0:00:21.2]} 62. Kg1 {[%clk 0:00:04.2]}
62... Qe5 {[%clk 0:00:08.9]} 63. Qh5 {[%clk 0:00:01.7]} 63... Kh7 {[%clk
0:00:08.5]} 64. Qh2 {[%clk 0:00:02.6]} 64... Qxh2+ {[%clk 0:00:07.9]} 65. Kxh2
{[%clk 0:00:03.5]} 65... Kxh6 {[%clk 0:00:08.6]} 66. Kg3 {[%clk 0:00:04.4]}
66... Kg5 {[%clk 0:00:09.3]} 67. Kf3 {[%clk 0:00:02.4]} 67... Kg6 {[%clk
0:00:08.9]} 68. Kf4 {[%clk 0:00:02.7]} 68... Kf6 {[%clk 0:00:09.2]} 69. f3
{[%clk 0:00:03]} 69... Kg6 {[%clk 0:00:08]} 70. Ke5 {[%clk 0:00:03.2]} 70... f4
{[%clk 0:00:07.6]} 71. Kxf4 {[%clk 0:00:03.3]} 71... Kf6 {[%clk 0:00:08.1]} 72.
Kg4 {[%clk 0:00:03.7]} 72... Kg6 {[%clk 0:00:08.5]} 73. f4 {[%clk 0:00:04.4]}
73... Kf6 {[%clk 0:00:08.9]} 74. f5 {[%clk 0:00:04.7]} 74... Kf7 {[%clk
0:00:09.3]} 75. Kf4 {[%clk 0:00:05.6]} 75... Kf6 {[%clk 0:00:09.7]} 76. Ke4
{[%clk 0:00:05.5]} 76... Kf7 {[%clk 0:00:10]} 77. Kf4 {[%clk 0:00:06.4]} 77...
Kf6 {[%clk 0:00:10.4]} 78. Ke4 {[%clk 0:00:07.3]} 78... Kf7 {[%clk 0:00:10.5]}
79. Kf4 {[%clk 0:00:08.2]} 1/2-1/2

[Event "Early-Titled-Tuesday-Blitz-November-28-2023"]
[Site "Chess.com"]
[Date "2023.11.28"]
[Round "3"]
[White "Zhigalko_Sergei"]
[Black "Aradhya2000"]
[Result "1-0"]
[WhiteElo "2908"]
[BlackElo "2688"]
[TimeControl "180+1"]
[EndTime "8:30:32 PST"]
[Termination "Zhigalko_Sergei won by checkmate"]

1. e4 {[%clk 0:03:00.9]} 1... e5 {[%clk 0:03:00.2]} 2. Nf3 {[%clk 0:03:01]} 2...
Nc6 {[%clk 0:03:00.9]} 3. Bc4 {[%clk 0:03:01.3]} 3... Nf6 {[%clk 0:03:01.5]} 4.
d3 {[%clk 0:03:01.4]} 4... Bc5 {[%clk 0:02:59.9]} 5. O-O {[%clk 0:03:01]} 5...
O-O {[%clk 0:03:00.1]} 6. Nbd2 {[%clk 0:03:01]} 6... d6 {[%clk 0:02:54.3]} 7. c3
{[%clk 0:03:00.8]} 7... a5 {[%clk 0:02:54.3]} 8. h3 {[%clk 0:02:53.5]} 8... h6
{[%clk 0:02:54.2]} 9. Re1 {[%clk 0:02:53.5]} 9... Be6 {[%clk 0:02:54.1]} 10. Bb5
{[%clk 0:02:53.2]} 10... Nd7 {[%clk 0:02:52.9]} 11. Nf1 {[%clk 0:02:42.9]} 11...
d5 {[%clk 0:02:52.5]} 12. Ng3 {[%clk 0:02:36.9]} 12... dxe4 {[%clk 0:02:52]} 13.
dxe4 {[%clk 0:02:31.3]} 13... Qf6 {[%clk 0:02:38.9]} 14. Qe2 {[%clk 0:02:21]}
14... Rfd8 {[%clk 0:02:34.7]} 15. Be3 {[%clk 0:02:17.8]} 15... a4 {[%clk
0:02:27.7]} 16. Bxc5 {[%clk 0:01:21.7]} 16... Nxc5 {[%clk 0:02:26.5]} 17. Qe3
{[%clk 0:01:22.1]} 17... Nd7 {[%clk 0:02:06.9]} 18. Red1 {[%clk 0:01:14.9]}
18... Nb6 {[%clk 0:02:04.6]} 19. Bxc6 {[%clk 0:01:05.2]} 19... Rxd1+ {[%clk
0:01:57.8]} 20. Rxd1 {[%clk 0:01:04.6]} 20... bxc6 {[%clk 0:01:58.7]} 21. Qc5
{[%clk 0:01:04.5]} 21... Bxa2 {[%clk 0:01:34.7]} 22. Nxe5 {[%clk 0:01:04.5]}
22... Bb3 {[%clk 0:01:31.4]} 23. Rd4 {[%clk 0:01:00.8]} 23... Qg5 {[%clk
0:01:30.8]} 24. Nd3 {[%clk 0:00:46.3]} 24... Bc2 {[%clk 0:00:58.8]} 25. Nf5
{[%clk 0:00:23.4]} 25... Qf6 {[%clk 0:00:26.5]} 26. Ne5 {[%clk 0:00:16.1]} 26...
Bxe4 {[%clk 0:00:25.4]} 27. Ne7+ {[%clk 0:00:16]} 27... Kh8 {[%clk 0:00:22.2]}
28. Rxe4 {[%clk 0:00:16.3]} 28... Rd8 {[%clk 0:00:18.4]} 29. N7xc6 {[%clk
0:00:12.4]} 29... Rd1+ {[%clk 0:00:16.5]} 30. Kh2 {[%clk 0:00:12.5]} 30... Kh7
{[%clk 0:00:16.4]} 31. Qe3 {[%clk 0:00:09.2]} 31... Rd6 {[%clk 0:00:15.4]} 32.
Nd4 {[%clk 0:00:07.1]} 32... Nd5 {[%clk 0:00:14.8]} 33. Qf3 {[%clk 0:00:07]}
33... Qxf3 {[%clk 0:00:14]} 34. Nexf3 {[%clk 0:00:06.7]} 34... Rb6 {[%clk
0:00:12.5]} 35. Re2 {[%clk 0:00:06.7]} 35... Nf4 {[%clk 0:00:12.8]} 36. Rd2
{[%clk 0:00:07]} 36... c5 {[%clk 0:00:12.1]} 37. Nf5 {[%clk 0:00:07.3]} 37...
Ne6 {[%clk 0:00:09.6]} 38. Ne3 {[%clk 0:00:07.4]} 38... Rb3 {[%clk 0:00:06.9]}
39. Nc4 {[%clk 0:00:07.6]} 39... Nc7 {[%clk 0:00:04.8]} 40. Nfe5 {[%clk
0:00:07.7]} 40... Nb5 {[%clk 0:00:04.2]} 41. Nxf7 {[%clk 0:00:06.9]} 41... a3
{[%clk 0:00:04.6]} 42. Nxa3 {[%clk 0:00:07.1]} 42... Nxa3 {[%clk 0:00:05.1]} 43.
bxa3 {[%clk 0:00:08]} 43... Rxc3 {[%clk 0:00:05.7]} 44. Rd7 {[%clk 0:00:07.6]}
44... Rxa3 {[%clk 0:00:05.3]} 45. Rc7 {[%clk 0:00:07.9]} 45... Rc3 {[%clk
0:00:05.2]} 46. Nd6 {[%clk 0:00:07.7]} 46... Kg8 {[%clk 0:00:04.3]} 47. f3
{[%clk 0:00:07.9]} 47... Rc2 {[%clk 0:00:03.7]} 48. Nf5 {[%clk 0:00:07.9]} 48...
Kf8 {[%clk 0:00:03.4]} 49. Nxg7 {[%clk 0:00:07.9]} 49... c4 {[%clk 0:00:04]} 50.
Nf5 {[%clk 0:00:08]} 50... c3 {[%clk 0:00:03.5]} 51. Ne3 {[%clk 0:00:07.6]}
51... Rc1 {[%clk 0:00:03.8]} 52. Kg3 {[%clk 0:00:07.9]} 52... Ke8 {[%clk
0:00:02.8]} 53. Nd5 {[%clk 0:00:07.4]} 53... c2 {[%clk 0:00:02.8]} 54. Nb4
{[%clk 0:00:07.7]} 54... Kd8 {[%clk 0:00:03.3]} 55. Rxc2 {[%clk 0:00:07.2]}
55... Rb1 {[%clk 0:00:03.8]} 56. Rd2+ {[%clk 0:00:07.3]} 56... Ke7 {[%clk
0:00:03.5]} 57. Nd5+ {[%clk 0:00:08.1]} 57... Ke6 {[%clk 0:00:04]} 58. Nf4+
{[%clk 0:00:09]} 58... Ke5 {[%clk 0:00:04.6]} 59. Rd5+ {[%clk 0:00:09.1]} 59...
Kf6 {[%clk 0:00:05.3]} 60. Rd6+ {[%clk 0:00:09.3]} 60... Kg7 {[%clk 0:00:05.7]}
61. h4 {[%clk 0:00:09.1]} 61... Rb4 {[%clk 0:00:05.2]} 62. Rc6 {[%clk
0:00:08.9]} 62... Ra4 {[%clk 0:00:05.5]} 63. Rc7+ {[%clk 0:00:09]} 63... Kf6
{[%clk 0:00:05.4]} 64. Rh7 {[%clk 0:00:08.9]} 64... Kf5 {[%clk 0:00:05.6]} 65.
Rxh6 {[%clk 0:00:07.8]} 65... Rb4 {[%clk 0:00:04.7]} 66. Rh5+ {[%clk 0:00:07.7]}
66... Kf6 {[%clk 0:00:05.3]} 67. Nd5+ {[%clk 0:00:07.6]} 67... Kg6 {[%clk
0:00:06]} 68. Rg5+ {[%clk 0:00:07.9]} 68... Kh6 {[%clk 0:00:06.8]} 69. Nxb4
{[%clk 0:00:08.1]} 69... Kh7 {[%clk 0:00:07.5]} 70. Kf4 {[%clk 0:00:08.5]} 70...
Kh6 {[%clk 0:00:08.2]} 71. Kf5 {[%clk 0:00:09.2]} 71... Kh7 {[%clk 0:00:09]} 72.
Kf6 {[%clk 0:00:09.3]} 72... Kh6 {[%clk 0:00:09.7]} 73. Kf7 {[%clk 0:00:09.3]}
73... Kh7 {[%clk 0:00:09.9]} 74. Rh5# {[%clk 0:00:10.2]} 1-0

[Event "Early-Titled-Tuesday-Blitz-November-28-2023"]
[Site "Chess.com"]
[Date "2023.11.28"]
[Round "3"]
[White "Auger_Pi"]
[Black "krucki03"]
[Result "0-1"]
[WhiteElo "2606"]
[BlackElo "2476"]
[TimeControl "180+1"]
[EndTime "8:30:33 PST"]
[Termination "krucki03 won by resignation"]

1. e4 {[%clk 0:03:00.9]} 1... e5 {[%clk 0:02:55.4]} 2. Nf3 {[%clk 0:03:00.2]}
2... Nc6 {[%clk 0:02:55.3]} 3. Bc4 {[%clk 0:02:57]} 3... Nf6 {[%clk 0:02:55.4]}
4. d3 {[%clk 0:02:57.4]} 4... Bc5 {[%clk 0:02:52.5]} 5. c3 {[%clk 0:02:56.5]}
5... O-O {[%clk 0:02:50.2]} 6. O-O {[%clk 0:02:54.5]} 6... d6 {[%clk 0:02:48.7]}
7. Re1 {[%clk 0:02:52.1]} 7... h6 {[%clk 0:02:47.1]} 8. h3 {[%clk 0:02:50.5]}
8... a5 {[%clk 0:02:45.2]} 9. d4 {[%clk 0:02:48]} 9... Ba7 {[%clk 0:02:41.6]}
10. Bb3 {[%clk 0:02:45.6]} 10... Re8 {[%clk 0:02:39.5]} 11. Bc2 {[%clk 0:02:46]}
11... Bd7 {[%clk 0:02:36.6]} 12. a3 {[%clk 0:02:15.8]} 12... a4 {[%clk
0:02:25.7]} 13. d5 {[%clk 0:02:09.4]} 13... Na5 {[%clk 0:02:22.9]} 14. Bxa4
{[%clk 0:01:48]} 14... b5 {[%clk 0:02:05.5]} 15. Bc2 {[%clk 0:01:46.8]} 15...
Qc8 {[%clk 0:02:00.3]} 16. Kh2 {[%clk 0:01:32.4]} 16... Bxf2 {[%clk 0:01:56.1]}
17. Rf1 {[%clk 0:01:32.9]} 17... Bb6 {[%clk 0:01:53.6]} 18. Nbd2 {[%clk
0:01:28]} 18... c6 {[%clk 0:01:35.2]} 19. b4 {[%clk 0:01:06.7]} 19... Nc4 {[%clk
0:01:30.4]} 20. Nxc4 {[%clk 0:01:06.5]} 20... bxc4 {[%clk 0:01:30.5]} 21. dxc6
{[%clk 0:01:02.1]} 21... Bxc6 {[%clk 0:01:29.1]} 22. Qe2 {[%clk 0:00:49.2]}
22... Qb7 {[%clk 0:00:59.2]} 23. Re1 {[%clk 0:00:49.4]} 23... d5 {[%clk
0:00:54.5]} 24. Nd2 {[%clk 0:00:31.6]} 24... Rac8 {[%clk 0:00:43.7]} 25. a4
{[%clk 0:00:29.4]} 25... dxe4 {[%clk 0:00:43.9]} 26. Nxc4 {[%clk 0:00:28.8]}
26... Bd5 {[%clk 0:00:43.6]} 27. Nxb6 {[%clk 0:00:23.8]} 27... Qxb6 {[%clk
0:00:43.4]} 28. Be3 {[%clk 0:00:22.8]} 28... Qc7 {[%clk 0:00:42.1]} 29. Bc5
{[%clk 0:00:15.4]} 29... Nd7 {[%clk 0:00:39.6]} 30. Bxe4 {[%clk 0:00:15.5]}
30... Bxe4 {[%clk 0:00:37.5]} 31. Qxe4 {[%clk 0:00:15.2]} 31... Nxc5 {[%clk
0:00:38.2]} 32. bxc5 {[%clk 0:00:16]} 32... Qxc5 {[%clk 0:00:39]} 33. a5 {[%clk
0:00:16.7]} 33... Ra8 {[%clk 0:00:26.7]} 34. a6 {[%clk 0:00:17]} 34... Qxc3
{[%clk 0:00:26.9]} 35. Ra4 {[%clk 0:00:14.1]} 35... Ra7 {[%clk 0:00:24.4]} 36.
Rf1 {[%clk 0:00:10.9]} 36... Qb3 {[%clk 0:00:20.6]} 37. Rf5 {[%clk 0:00:10.1]}
37... Qb6 {[%clk 0:00:17.4]} 38. Rxe5 {[%clk 0:00:08.6]} 38... Qd6 {[%clk
0:00:16.5]} 39. Ra5 {[%clk 0:00:04.1]} 39... Rxa6 {[%clk 0:00:16.8]} 40. Rd5
{[%clk 0:00:01.4]} 40... Qb8 {[%clk 0:00:15.8]} 41. Qf4 {[%clk 0:00:01.4]} 41...
Rxe5 {[%clk 0:00:15.1]} 42. Rxe5 {[%clk 0:00:02.3]} 42... Re6 {[%clk 0:00:14.3]}
43. Rf5 {[%clk 0:00:02]} 43... Qxf4+ {[%clk 0:00:14.1]} 44. Rxf4 {[%clk
0:00:02.9]} 44... g5 {[%clk 0:00:13.8]} 45. Rb4 {[%clk 0:00:02.6]} 45... Kg7
{[%clk 0:00:14.3]} 46. h4 {[%clk 0:00:03.2]} 46... Kg6 {[%clk 0:00:12.1]} 47.
hxg5 {[%clk 0:00:04.1]} 47... hxg5 {[%clk 0:00:11.7]} 48. Rb5 {[%clk 0:00:04.6]}
48... Ra6 {[%clk 0:00:11.4]} 49. Rc5 {[%clk 0:00:04.9]} 49... f6 {[%clk
0:00:11.6]} 50. Rb5 {[%clk 0:00:05.3]} 50... Kh5 {[%clk 0:00:12.1]} 51. Rc5
{[%clk 0:00:05.8]} 51... Kg4 {[%clk 0:00:12.1]} 52. Rb5 {[%clk 0:00:06.2]} 52...
f5 {[%clk 0:00:12.6]} 53. Rc5 {[%clk 0:00:06.4]} 53... Re6 {[%clk 0:00:12.2]}
54. Rc4+ {[%clk 0:00:06.6]} 54... Re4 {[%clk 0:00:12.4]} 55. Rc3 {[%clk
0:00:07.3]} 55... Ra4 {[%clk 0:00:12]} 56. Rb3 {[%clk 0:00:07.6]} 56... f4
{[%clk 0:00:12]} 57. Rc3 {[%clk 0:00:08.2]} 57... Re4 {[%clk 0:00:12.1]} 58. Rb3
{[%clk 0:00:08.7]} 58... Re3 {[%clk 0:00:12.6]} 59. Rb2 {[%clk 0:00:09.4]} 59...
Kh4 {[%clk 0:00:12]} 60. Rb4 {[%clk 0:00:09.9]} 60... Re2 {[%clk 0:00:10.5]} 61.
Kg1 {[%clk 0:00:09.4]} 61... Ra2 {[%clk 0:00:07.5]} 62. Rb3 {[%clk 0:00:09.7]}
62... g4 {[%clk 0:00:07.2]} 63. Rd3 {[%clk 0:00:09.1]} 63... Re2 {[%clk
0:00:07.1]} 64. Rc3 {[%clk 0:00:09.3]} 64... Re3 {[%clk 0:00:07.5]} 65. Rc4
{[%clk 0:00:08.7]} 65... Kg3 {[%clk 0:00:07.7]} 66. Rc2 {[%clk 0:00:07.4]} 66...
Ra3 {[%clk 0:00:07.5]} 67. Rc1 {[%clk 0:00:08.3]} 67... Ra2 {[%clk 0:00:06.4]}
68. Rc3+ {[%clk 0:00:08.6]} 68... f3 {[%clk 0:00:05.3]} 69. gxf3 {[%clk
0:00:09.1]} 69... gxf3 {[%clk 0:00:06.2]} 70. Rc1 {[%clk 0:00:08.5]} 70... Rg2+
{[%clk 0:00:05.9]} 71. Kh1 {[%clk 0:00:09.1]} 71... Rh2+ {[%clk 0:00:06.1]} 72.
Kg1 {[%clk 0:00:09.8]} 72... f2+ {[%clk 0:00:06.6]} 73. Kf1 {[%clk 0:00:10.1]}
73... Rh1+ {[%clk 0:00:07.2]} 74. Ke2 {[%clk 0:00:11]} 74... Rxc1 {[%clk
0:00:07.5]} 0-1

[Event "Early-Titled-Tuesday-Blitz-November-28-2023"]
[Site "Chess.com"]
[Date "2023.11.28"]
[Round "3"]
[White "Pendos666"]
[Black "vi_pranav"]
[Result "1/2-1/2"]
[WhiteElo "2801"]
[BlackElo "3062"]
[TimeControl "180+1"]
[EndTime "8:30:38 PST"]
[Termination "Game drawn - insufficient material"]

1. e4 {[%clk 0:03:00.9]} 1... e5 {[%clk 0:02:59.9]} 2. Nf3 {[%clk 0:03:00.6]}
2... Nc6 {[%clk 0:03:00.6]} 3. Bb5 {[%clk 0:03:00.5]} 3... a6 {[%clk 0:03:00.5]}
4. Ba4 {[%clk 0:02:57.2]} 4... Nf6 {[%clk 0:03:00.4]} 5. Qe2 {[%clk 0:02:55.9]}
5... d6 {[%clk 0:02:55.1]} 6. c3 {[%clk 0:02:54.6]} 6... Be7 {[%clk 0:02:54.7]}
7. O-O {[%clk 0:02:54.7]} 7... O-O {[%clk 0:02:54.8]} 8. Rd1 {[%clk 0:02:53.2]}
8... Re8 {[%clk 0:02:46.4]} 9. d4 {[%clk 0:02:50]} 9... exd4 {[%clk 0:02:44.7]}
10. cxd4 {[%clk 0:02:49.9]} 10... Bf8 {[%clk 0:02:44.8]} 11. e5 {[%clk 0:02:47]}
11... Nd5 {[%clk 0:02:41.9]} 12. Nc3 {[%clk 0:02:38.3]} 12... Nxc3 {[%clk
0:02:35.8]} 13. bxc3 {[%clk 0:02:39.2]} 13... d5 {[%clk 0:02:36.3]} 14. Bc2
{[%clk 0:02:35.5]} 14... f5 {[%clk 0:02:28]} 15. Ng5 {[%clk 0:02:15.5]} 15...
Qe7 {[%clk 0:02:14]} 16. Qf3 {[%clk 0:02:07.7]} 16... Nd8 {[%clk 0:01:45.1]} 17.
Qxd5+ {[%clk 0:01:46.8]} 17... Kh8 {[%clk 0:01:43.3]} 18. Rd3 {[%clk 0:01:35.6]}
18... h6 {[%clk 0:01:34.5]} 19. Bb3 {[%clk 0:01:27.8]} 19... Ne6 {[%clk
0:01:06.9]} 20. Nxe6 {[%clk 0:01:24.3]} 20... Bxe6 {[%clk 0:01:07.4]} 21. Qxe6
{[%clk 0:01:23.8]} 21... Qxe6 {[%clk 0:01:08.3]} 22. Bxe6 {[%clk 0:01:24.1]}
22... Rxe6 {[%clk 0:01:09.2]} 23. f4 {[%clk 0:01:24.6]} 23... Rc6 {[%clk
0:01:09.2]} 24. Be3 {[%clk 0:01:20.6]} 24... Rc4 {[%clk 0:01:09]} 25. d5 {[%clk
0:01:15.8]} 25... Kg8 {[%clk 0:01:07.5]} 26. Kf2 {[%clk 0:01:16]} 26... Rd8
{[%clk 0:01:00.6]} 27. Rb1 {[%clk 0:01:11.3]} 27... b5 {[%clk 0:00:59]} 28. Rbd1
{[%clk 0:01:10.5]} 28... Kf7 {[%clk 0:00:57.1]} 29. Kf3 {[%clk 0:01:10.7]} 29...
Ra4 {[%clk 0:00:52.3]} 30. h3 {[%clk 0:01:10.7]} 30... h5 {[%clk 0:00:40]} 31.
R1d2 {[%clk 0:01:06.6]} 31... h4 {[%clk 0:00:39.1]} 32. Rc2 {[%clk 0:01:02.4]}
32... Be7 {[%clk 0:00:37.3]} 33. Rd4 {[%clk 0:00:47.7]} 33... Ra3 {[%clk
0:00:36.5]} 34. Ke2 {[%clk 0:00:42.3]} 34... g6 {[%clk 0:00:29.3]} 35. Rd3
{[%clk 0:00:35.3]} 35... Ra4 {[%clk 0:00:28.3]} 36. c4 {[%clk 0:00:30.3]} 36...
Rxc4 {[%clk 0:00:13.1]} 37. Rxc4 {[%clk 0:00:28.4]} 37... bxc4 {[%clk 0:00:14]}
38. Rc3 {[%clk 0:00:28.7]} 38... Rxd5 {[%clk 0:00:14.1]} 39. Rxc4 {[%clk
0:00:29.3]} 39... Bd8 {[%clk 0:00:14.7]} 40. a4 {[%clk 0:00:25.2]} 40... g5
{[%clk 0:00:10.2]} 41. fxg5 {[%clk 0:00:19.3]} 41... Rxe5 {[%clk 0:00:10.5]} 42.
Kf3 {[%clk 0:00:20]} 42... a5 {[%clk 0:00:06.3]} 43. Bf4 {[%clk 0:00:17.9]}
43... Re7 {[%clk 0:00:03.9]} 44. Rc5 {[%clk 0:00:18.2]} 44... Kg6 {[%clk
0:00:02.4]} 45. Rxa5 {[%clk 0:00:18.3]} 45... Re6 {[%clk 0:00:03.1]} 46. Rd5
{[%clk 0:00:18.1]} 46... Bxg5 {[%clk 0:00:02.8]} 47. Bxg5 {[%clk 0:00:18.2]}
47... Kxg5 {[%clk 0:00:03.7]} 48. a5 {[%clk 0:00:18.8]} 48... Re4 {[%clk
0:00:03.9]} 49. Rc5 {[%clk 0:00:18.1]} 49... Ra4 {[%clk 0:00:04.2]} 50. Rxc7
{[%clk 0:00:16.9]} 50... Ra3+ {[%clk 0:00:04.1]} 51. Kf2 {[%clk 0:00:16]} 51...
Rxa5 {[%clk 0:00:04.7]} 52. Rc4 {[%clk 0:00:16.1]} 52... Re5 {[%clk 0:00:04.3]}
53. Kg1 {[%clk 0:00:16.3]} 53... Re4 {[%clk 0:00:04.3]} 54. Rc3 {[%clk
0:00:16.4]} 54... Kf4 {[%clk 0:00:03.9]} 55. Kf2 {[%clk 0:00:17]} 55... Rd4
{[%clk 0:00:03.6]} 56. Rc2 {[%clk 0:00:17.5]} 56... Kg5 {[%clk 0:00:03]} 57. Rb2
{[%clk 0:00:17.9]} 57... Rf4+ {[%clk 0:00:03.5]} 58. Ke3 {[%clk 0:00:17.4]}
58... Re4+ {[%clk 0:00:04.4]} 59. Kf3 {[%clk 0:00:17.8]} 59... Rf4+ {[%clk
0:00:04.5]} 60. Ke3 {[%clk 0:00:18.2]} 60... Rf1 {[%clk 0:00:05]} 61. Rb4 {[%clk
0:00:17.8]} 61... Ra1 {[%clk 0:00:03.9]} 62. Kf2 {[%clk 0:00:17.9]} 62... Ra2+
{[%clk 0:00:04.2]} 63. Kf3 {[%clk 0:00:18.3]} 63... Ra3+ {[%clk 0:00:04.1]} 64.
Kf2 {[%clk 0:00:18.7]} 64... Ra2+ {[%clk 0:00:04.7]} 65. Kf3 {[%clk 0:00:19.1]}
65... Ra1 {[%clk 0:00:05.3]} 66. Kf2 {[%clk 0:00:19.5]} 66... Rc1 {[%clk
0:00:05.2]} 67. Kf3 {[%clk 0:00:19.5]} 67... Rc3+ {[%clk 0:00:04.5]} 68. Kf2
{[%clk 0:00:19.9]} 68... Rd3 {[%clk 0:00:05.1]} 69. Ra4 {[%clk 0:00:19.9]} 69...
Rc3 {[%clk 0:00:04.1]} 70. Rb4 {[%clk 0:00:20.2]} 70... Ra3 {[%clk 0:00:04.4]}
71. Rc4 {[%clk 0:00:20.3]} 71... Ra8 {[%clk 0:00:04.2]} 72. Rb4 {[%clk
0:00:20.7]} 72... Re8 {[%clk 0:00:04.7]} 73. Rc4 {[%clk 0:00:21.1]} 73... Re4
{[%clk 0:00:05.2]} 74. Rxe4 {[%clk 0:00:20.5]} 74... fxe4 {[%clk 0:00:06.1]} 75.
g3 {[%clk 0:00:21.1]} 75... hxg3+ {[%clk 0:00:04.8]} 76. Kxg3 {[%clk 0:00:21.5]}
76... e3 {[%clk 0:00:05.4]} 77. Kf3 {[%clk 0:00:21.8]} 77... Kh4 {[%clk
0:00:06.3]} 78. Kxe3 {[%clk 0:00:22.2]} 78... Kxh3 {[%clk 0:00:07.2]} 1/2-1/2